[Event "US Masters 2024"]
[Site "Charlotte"]
[Date "2024.11.28"]
[Round "2.16"]
[White "Ouellet, Maili-Jade"]
[Black "Cordova, Emilio"]
[Result "0-1"]
[ECO "E39"]
[WhiteElo "2352"]
[BlackElo "2525"]
[Annotator "TA"]
[PlyCount "98"]
[EventDate "2024.09.23"]
[EventType "swiss"]
[EventCountry "USA"]
[SourceTitle "playchess.com"]
[Source "ChessBase"]
[SourceQuality "1"]
[TimeControl "5400+30"]

{[%evp 12,98,38,45,34,30,33,30,22,16,15,22,24,19,16,0,8,0,0,-24,-18,-38,-37,-51,-49,-133,-130,-127,-132,-135,-131,-137,-108,-102,-100,-115,-104,-190,-185,-166,-182,-179,-168,-252,-246,-226,-160,-184,-183,-165,-179,-175,-167,-308,-263,-287,-256,-365,-335,-316,-367,-331,-360,-361,-352,-358,-363,-352,-343,-359,-368,-416,-431,-493,-503,-416,-332,-646,-650,-761,-827,-981,-973,-1061,-908,-814,-813,-29979,-29978]} 1. d4 {[%emt 0:02:14]} Nf6 {[%emt 0:02:34]} 2. c4 {[%emt 0:00:03]} e6 {[%emt 0:00:23]} 3. Nc3 {[%emt 0:00:04]} Bb4 {[%emt 0:00:06]} 4. Qc2 {[%emt 0:00:10]} c5 {[%emt 0:01:03]} 5. dxc5 {[%emt 0:00:11]} O-O {[%emt 0:00:20]} 6. a3 {[%emt 0:00:31]} Bxc5 {[%emt 0:00:21]} 7. Nf3 {[%emt 0:00:29]} a6 {[%emt 0:01:19]} 8. Bg5 {[%emt 0:02:06]} Be7 {[%emt 0:02:20][%cal Ob7b5]} 9. e3 {[%emt 0:02:37]} d6 {[%emt 0:00:44] White has an edge.} 10. Be2 {[%emt 0:00:53]} b6 {[%emt 0:01:58]} 11. O-O {[%emt 0:00:48]} Bb7 {[%emt 0:00:20]} 12. Rfd1 {[%emt 0:01:04]} Qc7 {[%emt 0:00:44]} 13. Rd2 {[%emt 0:07:27]} Nbd7 {[%emt 0:01:37]} 14. Rad1 {[%emt 0:01:03]} Rfd8 {[%emt 0:00:35]} 15. Bd3 {[%emt 0:15:54][%cal Od3h7]} h6 {[%emt 0:12:01]} 16. Bxf6 {[%emt 0:01:19]} Nxf6 {[%emt 0:00:13]} 17. Ne4 {[%emt 0:01:13]} Rac8 {[%emt 0:03:59]} 18. b3 {[%emt 0:05:08] [#]} (18. h3 $15) 18... Nxe4 $1 $17 {[%emt 0:09:42]} 19. Bxe4 {[%emt 0:00:03] [#]} d5 $1 {[%emt 0:00:16][%mdl 512]} 20. cxd5 {[%emt 0:03:06]} Qxc2 {[%emt 0:02:24]} (20... Bxa3 21. Qxc7 Rxc7 22. d6 $14) 21. Rxc2 {[%emt 0:10:32]} Bxa3 {[%emt 0:03:52]} (21... Bxd5 22. Rxc8 Rxc8 23. Bxd5 exd5 24. a4) 22. Rxc8 {[%emt 0:15:24]} Rxc8 {[%emt 0:00:48]} 23. Kf1 {[%emt 0:04:28]} Rc3 {[%emt 0:06:12]} (23... a5 {simplifies} 24. Ne5 Rc3 25. Bf3 Bxd5 26. Bxd5 exd5 27. Rxd5 Rxb3 28. Rd8+ Kh7) 24. dxe6 {[%emt 0:04:21]} (24. Ne5 $17) 24... Bxe4 $19 {[%emt 0:00:18]} 25. Rd8+ {[%emt 0:00:06]} Kh7 {[%emt 0:00:04]} 26. exf7 {[%emt 0:00:03]} Rxb3 {[%emt 0:02:40]} 27. Ne5 {[%emt 0:05:33] Wards off Bd3+} (27. Ke2 {was called for.}) 27... Rb1+ {[%emt 0:10:54]} 28. Ke2 {[%emt 0:00:02]} Bxg2 {[%emt 0:00:24] aiming for ...Rb2+.} 29. Nd7 {[%emt 0:06:18]} Kg6 {[%emt 0:03:36]} 30. f8=Q {[%emt 0:00:39]} Bxf8 {[%emt 0:00:04]} 31. Rxf8 {[%emt 0:00:09][%mdl 4096] Endgame. KRB-KRN} a5 {[%emt 0:00:47]} 32. h4 {[%emt 0:03:31]} (32. Ne5+ $142 Kh7 33. f3) 32... Rb5 {[%emt 0:04:21] Hoping for ...a4.} 33. Rf4 {[%emt 0:02:58]} Bh3 {[%emt 0:01:16] Prevents Rg4+} 34. Nf8+ {[%emt 0:00:57]} Kh5 {[%emt 0:00:12] White must now prevent ...Rf5.} 35. Rd4 {[%emt 0:01:24]} Bg4+ {[%emt 0:06:34]} 36. Kd3 {[%emt 0:00:04]} Rb3+ {[%emt 0:06:11]} ({Worse is} 36... Kxh4 37. f3 h5 (37... Rb3+ 38. Kc2 $11) 38. fxg4 $11) 37. Kc2 {[%emt 0:00:24] [#]} Rb4 {[%emt 0:00:04] Strongly threatening ...Rxd4.} ({Resist} 37... Rb5 38. Kc3 $19) 38. Rd5+ {[%emt 0:04:00]} Kxh4 {[%emt 0:00:40]} 39. Ng6+ {[%emt 0:00:19]} Kh3 {[%emt 0:00:16]} 40. Nf4+ {[%emt 0:01:44]} Kh2 {[%emt 0:00:43]} 41. Rd2 {[%emt 0:00:05]} Bf3 {[%emt 0:00:47]} 42. Kc3 {[%emt 0:00:46]} g5 {[%emt 0:04:50]} 43. Nd3 {[%emt 0:00:05]} Rb1 {[%emt 0:01:18]} 44. Ne5 $2 {[%emt 0:00:22]} (44. e4 Kh3 (44... Bxe4 45. f3+ Kg3 46. fxe4 $18) 45. e5) 44... Kg2 {[%emt 0:00:39] Threatens to win with ...h5.} 45. Rd6 {[%emt 0:00:44]} h5 {[%emt 0:00:32]} 46. Rg6 {[%emt 0:00:48]} g4 {[%emt 0:00:31]} 47. Rh6 {[%emt 0:00:41]} Kxf2 {[%emt 0:00:21]} 48. Rxh5 {[%emt 0:00:12]} Kxe3 {[%emt 0:00:13]} 49. Nd3 {[%emt 0:01:18]} g3 {[%emt 0:00:46] Weighted Error Value: White=0.49/Black=0.10 (very precise) .  Mistake:       	White=5     	---        Inaccurate:     	White=1     	---        OK:         	White=11    	Black=17     Best:        	White=3     	Black=6      Strong:       	---       	Black=1} 0-1

[Event "US Masters 2024"]
[Site "Charlotte"]
[Date "2024.11.28"]
[Round "2.17"]
[White "Parkhov, Yair"]
[Black "Wang, Tianqi"]
[Result "1/2-1/2"]
[ECO "A84"]
[WhiteElo "2523"]
[BlackElo "2323"]
[Annotator "TA"]
[PlyCount "80"]
[EventDate "2024.09.23"]
[EventType "swiss"]
[EventCountry "USA"]
[SourceTitle "playchess.com"]
[Source "ChessBase"]
[SourceQuality "1"]
[TimeControl "5400+30"]

{[%evp 9,80,20,59,30,37,12,28,22,18,26,26,16,11,0,12,0,21,-1,-6,-27,0,0,0,0,0,0,0,-27,10,0,0,0,0,0,0,0,10,0,0,0,0,0,0,0,0,0,0,0,0,0,0,0,0,0,0,0,0,0,0,0,0,0,0,0,0,0,0,0,0,0,0,0,0]} 1. c4 {[%emt 0:05:02]} e6 {[%emt 0:02:05]} 2. Nc3 {[%emt 0:00:35]} d5 {[%emt 0:00:21]} 3. d4 {[%emt 0:00:10]} c6 {[%emt 0:00:11]} 4. e3 {[%emt 0:02:41]} f5 {[%emt 0:00:19]} 5. Nf3 {[%emt 0:01:35]} Nd7 {[%emt 0:00:06]} 6. Be2 {[%emt 0:04:27]} Bd6 {[%emt 0:00:22]} 7. b3 {[%emt 0:02:15]} Qe7 {[%emt 0:07:15]} 8. Bb2 {[%emt 0:04:56] White has an edge.} Ngf6 {[%emt 0:02:38]} 9. O-O {[%emt 0:05:11]} O-O {[%emt 0:00:59]} 10. a4 {[%emt 0:06:56]} a5 {[%emt 0:01:46]} 11. Qc2 {[%emt 0:11:19]} Ne4 {[%emt 0:09:16]} 12. Nb1 {[%emt 0:02:48]} b6 {[%emt 0:09:11]} 13. Ne5 {[%emt 0:04:12]} Bb7 {[%emt 0:03:20]} 14. Nd2 {[%emt 0:07:35]} Nxd2 {[%emt 0:04:47]} 15. Qxd2 {[%emt 0:00:37]} Nxe5 {[%emt 0:01:02]} 16. dxe5 {[%emt 0:00:05]} Bb4 {[%emt 0:00:04]} 17. Qc2 {[%emt 0:00:20]} Rad8 {[%emt 0:01:23]} 18. Rfd1 {[%emt 0:04:51]} Rd7 {[%emt 0:06:41]} 19. Rac1 {[%emt 0:02:25] The position is equal.} Bc5 {[%emt 0:09:07]} 20. Bd4 {[%emt 0:01:53]} Bxd4 {[%emt 0:06:05]} 21. exd4 {[%emt 0:00:52]} c5 {[%emt 0:06:42]} 22. Bf3 {[%emt 0:10:40]} Rfd8 {[%emt 0:05:26]} 23. dxc5 {[%emt 0:01:39]} Qxc5 {[%emt 0:00:17]} 24. cxd5 {[%emt 0:00:15]} Qxc2 {[%emt 0:04:34]} 25. Rxc2 {[%emt 0:00:06]} Bxd5 {[%emt 0:00:05]} 26. Bxd5 {[%emt 0:07:18]} Rxd5 {[%emt 0:00:05]} 27. Rxd5 {[%emt 0:00:05]} Rxd5 $11 {[%emt 0:00:01][%cal Rd5d1][%mdl 4096] [#] Endgame. KR-KR} 28. f4 {[%emt 0:00:06]} b5 {[%emt 0:01:52]} 29. Rc8+ {[%emt 0:04:18]} Kf7 {[%emt 0:00:04]} 30. Rc7+ {[%emt 0:00:15]} Kf8 {[%emt 0:00:05]} 31. Ra7 {[%emt 0:01:05]} bxa4 {[%emt 0:03:23]} 32. bxa4 {[%emt 0:00:04]} Rd4 {[%emt 0:05:21][%csl LRa4,LRf4]} 33. Ra8+ {[%emt 0:01:03]} Kf7 {[%emt 0:00:04]} 34. Ra7+ {[%emt 0:00:07]} Kf8 {[%emt 0:00:05]} 35. Rxa5 {[%emt 0:00:06]} Rxf4 {[%emt 0:00:14]} 36. Ra8+ {[%emt 0:00:11]} Kf7 {[%emt 0:00:05]} 37. Ra7+ {[%emt 0:00:04]} Kg6 {[%emt 0:01:38]} 38. Ra6 {[%emt 0:01:11]} Kf7 {[%emt 0:00:07]} 39. Ra7+ {[%emt 0:00:43]} Kg6 {[%emt 0:00:04]} 40. Ra6 {[%emt 0:00:06]} Kf7 {[%emt 0:00:09] Weighted Error Value: White=0.07 (flawless) /Black=0.06 (flawless) .  Inaccurate:     	White=1     	Black=2      OK:         	White=11    	Black=17     Best:        	---       	Black=2} 1/2-1/2

[Event "US Masters 2024"]
[Site "Charlotte"]
[Date "2024.11.28"]
[Round "2.18"]
[White "Kunka, Harshid"]
[Black "Repka, Christopher"]
[Result "0-1"]
[ECO "C60"]
[WhiteElo "2347"]
[BlackElo "2520"]
[Annotator "RC"]
[PlyCount "96"]
[EventDate "2024.09.23"]
[EventType "swiss"]
[EventCountry "USA"]
[SourceTitle "playchess.com"]
[Source "ChessBase"]
[SourceQuality "1"]
[TimeControl "5400+30"]

1. e4 {[%emt 0:00:03]} e5 {[%emt 0:12:56]} 2. Nf3 {[%emt 0:00:21]} Nc6 {[%emt 0:00:10]} 3. Bb5 {[%emt 0:00:09]} Nge7 {[%emt 0:00:33]} 4. c3 {[%emt 0:01:03]} d5 {[%emt 0:00:46]} 5. Nxe5 {[%emt 0:02:19]} dxe4 {[%emt 0:00:19]} 6. Qe2 {[%emt 1:29:35]} Qd5 {[%emt 1:18:46]} 7. f4 {[%emt 0:00:00]} exf3 {[%emt 0:00:00]} 8. Nxf3 {[%emt 0:00:00]} Bg4 {[%emt 0:00:00]} 9. O-O {[%emt 0:00:00]} O-O-O {[%emt 0:01:30]} 10. d4 {[%emt 0:00:00]} Nf5 {[%emt 0:00:00]} 11. Qc4 {[%emt 0:00:00]} Bxf3 {[%emt 0:00:00]} 12. gxf3 {[%emt 0:00:00]} Qd7 {[%emt 0:00:00]} 13. Bxc6 {[%emt 0:00:00]} Qxc6 {[%emt 0:00:00]} 14. Qxc6 {[%emt 0:00:00]} bxc6 {[%emt 0:00:00]} 15. b4 {[%emt 0:00:00]} Bd6 {[%emt 0:00:00]} 16. Re1 {[%emt 0:00:00]} Rhe8 {[%emt 0:00:00]} 17. Re4 {[%emt 0:00:00]} Nh4 {[%emt 0:00:00]} 18. Kf2 {[%emt 0:00:00]} Ng6 {[%emt 0:00:00]} 19. h3 {[%emt 0:00:00]} f5 {[%emt 0:00:00]} 20. Rxe8 {[%emt 0:00:00]} Rxe8 {[%emt 0:00:00]} 21. Na3 {[%emt 0:00:00]} Bf4 {[%emt 0:00:00]} 22. Nc4 {[%emt 0:00:00]} Bxc1 {[%emt 0:00:00]} 23. Rxc1 {[%emt 0:00:00]} Nf4 {[%emt 0:00:00]} 24. Rc2 {[%emt 0:00:00]} Nd3+ {[%emt 0:00:00]} 25. Kg3 {[%emt 0:00:00]} Re6 {[%emt 0:00:00]} 26. Rd2 {[%emt 0:00:00]} Rg6+ {[%emt 0:00:00]} 27. Kh2 {[%emt 0:00:00]} Nf4 {[%emt 0:00:00]} 28. Ne5 {[%emt 0:00:00]} Rh6 {[%emt 0:00:00]} 29. Kg3 {[%emt 0:00:00]} g5 {[%emt 0:02:52]} 30. Rh2 {[%emt 0:00:00]} Nd5 {[%emt 0:00:06]} 31. Rc2 {[%emt 0:00:00]} Kb7 {[%emt 0:01:21]} 32. a3 {[%emt 0:00:01]} Rh4 {[%emt 0:00:57]} 33. Nd3 {[%emt 0:04:55]} h5 {[%emt 0:01:21]} 34. Nc5+ {[%emt 0:00:20]} Kc8 {[%emt 0:00:16]} 35. Ne6 {[%emt 0:01:18]} f4+ {[%emt 0:00:15]} 36. Kh2 {[%emt 0:00:01]} g4 {[%emt 0:00:15]} 37. Ng5 {[%emt 0:00:14]} Ne3 {[%emt 0:01:36]} 38. Rc1 {[%emt 0:01:55]} Kd7 {[%emt 0:00:09]} 39. Kg1 {[%emt 0:01:42]} Ke7 {[%emt 0:00:44]} 40. Kf2 {[%emt 0:00:24]} Kf6 {[%emt 0:05:38]} 41. Ne4+ {[%emt 0:00:17]} Kf5 {[%emt 0:00:00]} 42. hxg4+ {[%emt 0:00:28]} hxg4 {[%emt 0:00:00]} 43. Ng3+ {[%emt 0:00:16]} fxg3+ {[%emt 0:00:00]} 44. Kxe3 {[%emt 0:00:06]} Rh6 {[%emt 0:00:00]} 45. Rg1 {[%emt 0:02:19]} Re6+ {[%emt 0:00:00]} 46. Kd3 {[%emt 0:00:02]} Kf4 {[%emt 0:00:00]} 47. fxg4 {[%emt 0:00:06]} Kf3 {[%emt 0:01:43]} 48. Rf1+ {[%emt 0:00:28]} Kxg4 {[%emt 0:00:05]} 0-1

[Event "US Masters 2024"]
[Site "Charlotte"]
[Date "2024.11.28"]
[Round "2.19"]
[White "Moradiabadi, Elshan"]
[Black "Xie, Bryan"]
[Result "1-0"]
[ECO "B47"]
[WhiteElo "2515"]
[BlackElo "2322"]
[Annotator "TA"]
[PlyCount "69"]
[EventDate "2024.09.23"]
[EventType "swiss"]
[EventCountry "USA"]
[SourceTitle "playchess.com"]
[Source "ChessBase"]
[SourceQuality "1"]
[TimeControl "5400+30"]

{[%evp 9,69,19,53,22,22,12,12,9,19,4,20,15,19,8,63,57,51,61,76,76,77,72,74,60,70,26,28,20,25,39,44,46,75,48,113,112,116,119,185,171,271,247,577,578,548,591,580,580,543,527,523,533,939,611,670,730,718,716,724,715,703,696]} 1. e4 {[%emt 0:00:02]} c5 {[%emt 0:04:28]} 2. Nf3 {[%emt 0:00:07]} e6 {[%emt 0:00:04]} 3. d4 {[%emt 0:00:03]} cxd4 {[%emt 0:00:06]} 4. Nxd4 {[%emt 0:00:03]} Nc6 {[%emt 0:00:07]} 5. Nc3 {[%emt 0:00:04][%cal Bb1c3,Bc3b5,Bb5d4,Bd4f3,Bf3d2,Bd2c4][%mdl 32]} Qc7 {[%emt 0:00:05]} 6. Ncb5 {[%emt 0:00:03]} Qb8 {[%emt 0:04:34]} 7. Bd3 {[%emt 0:00:04]} a6 {[%emt 0:07:12]} 8. Nxc6 {[%emt 0:00:04] The position is equal.} bxc6 {[%emt 0:00:08]} 9. Nd4 {[%emt 0:00:02]} c5 {[%emt 0:06:32]} 10. Nf3 {[%emt 0:00:03]} Bb7 {[%emt 0:08:25]} 11. O-O {[%emt 0:00:48]} d6 {[%emt 0:02:13]} ({Black should try} 11... c4 $11 12. Bxc4 Bxe4) 12. Bf4 $14 {[%emt 0:02:45]} Ne7 {[%emt 0:07:50]} 13. c3 {[%emt 0:06:57]} Nc6 {[%emt 0:03:52]} 14. Nd2 {[%emt 0:14:07]} Be7 {[%emt 0:03:56]} 15. Nc4 {[%emt 0:00:00]} Qc7 {[%emt 0:03:59]} 16. Qg4 {[%emt 0:00:08]} g5 {[%emt 0:05:00] [#] ...h5 would now be deadly.} 17. Be3 {[%emt 0:01:57][%cal Of2f4] White is much more active.} (17. Bxg5 $2 Rg8 18. f4 h6 $17) 17... d5 {[%emt 0:04:00]} 18. exd5 {[%emt 0:00:28]} exd5 {[%emt 0:00:02]} 19. Nd2 {[%emt 0:04:59]} Ne5 {[%emt 0:16:16][%csl LRd3,LRg4]} 20. Qg3 $36 {[%emt 0:01:03][%mdl 2048] White is more active.} h5 {[%emt 0:11:37] ...h4 is the strong threat.} 21. Bd4 {[%emt 0:07:06]} (21. Bxg5 {looks sharper.} h4 22. Qf4 Bxg5 23. Qxg5 Nxd3 24. Qe3+) 21... f6 {[%emt 0:06:48]} ({Black should play} 21... cxd4 $14 22. cxd4 h4 (22... Bb4 23. Nb3 $18) 23. Qxe5 Qxe5 24. dxe5 h3) 22. Bxe5 {[%emt 0:02:59]} Qxe5 {[%emt 0:00:13]} 23. f4 {[%emt 0:03:24]} Qd6 {[%emt 0:03:39]} (23... Qc7 $16) 24. Rae1 $18 {[%emt 0:06:36]} O-O-O {[%emt 0:00:43]} (24... g4 {might work better.}) 25. fxg5 {[%emt 0:00:15]} fxg5 $2 {[%emt 0:00:21]} (25... Qxg3 26. hxg3 Bd6 27. gxf6 (27. Rxf6 Rhg8 $18) 27... Rhf8) 26. Bf5+ {[%emt 0:00:02] White is clearly winning.} Rd7 {[%emt 0:00:38]} 27. Bxd7+ {[%emt 0:02:18]} Qxd7 {[%emt 0:00:07]} 28. Rf7 {[%emt 0:02:36]} Bd6 {[%emt 0:00:46]} 29. Qf2 {[%emt 0:00:18]} Qc6 {[%emt 0:00:27]} 30. Nb3 {[%emt 0:00:09] Black must now prevent Na5.} c4 {[%emt 0:00:51]} 31. Na5 {[%emt 0:00:35]} Bc5 {[%emt 0:00:11]} 32. Nxc6 {[%emt 0:00:04]} Bxf2+ {[%emt 0:00:05]} 33. Kxf2 {[%emt 0:00:04]} Bxc6 {[%emt 0:00:05]} 34. Re6 {[%emt 0:00:12]} Bb5 {[%emt 0:00:43] [#]} 35. a4 $1 {[%emt 0:00:18] Weighted Error Value: White=0.29 (precise) /Black=0.33.  Mistake:       	---       	Black=5      Inaccurate:     	White=3     	Black=2      OK:         	White=14    	Black=8      Best:        	White=2     	Black=2} 1-0

[Event "US Masters 2024"]
[Site "Charlotte"]
[Date "2024.11.28"]
[Round "2.20"]
[White "Sinha, Sahil"]
[Black "Schitco, Ivan"]
[Result "1-0"]
[ECO "E90"]
[WhiteElo "2346"]
[BlackElo "2511"]
[Annotator "TA"]
[PlyCount "77"]
[EventDate "2024.09.23"]
[EventType "swiss"]
[EventCountry "USA"]
[SourceTitle "playchess.com"]
[Source "ChessBase"]
[SourceQuality "1"]
[TimeControl "5400+30"]

{[%evp 19,77,69,70,50,73,65,83,93,84,85,93,85,93,84,166,164,201,204,214,204,218,212,209,212,229,222,375,380,377,376,469,473,554,543,598,473,563,545,675,665,678,601,896,872,812,922,929,572,932,884,932,921,883,768,1196,930,5170,1888,5800,5459]} 1. d4 {[%emt 0:00:03]} Nf6 {[%emt 0:03:43]} 2. c4 {[%emt 0:00:15]} c5 {[%emt 0:00:05]} 3. d5 {[%emt 0:00:14]} g6 {[%emt 0:00:07]} 4. Nc3 {[%emt 0:00:31]} Bg7 {[%emt 0:00:21]} 5. e4 {[%emt 0:01:05]} d6 {[%emt 0:00:08]} 6. h3 {[%emt 0:04:26]} O-O {[%emt 0:01:32]} 7. Nf3 {[%emt 0:00:18]} e6 {[%emt 0:00:39]} 8. Bd3 {[%emt 0:04:37]} Na6 {[%emt 0:00:44]} 9. O-O {[%emt 0:04:10]} Nc7 {[%emt 0:00:07]} 10. Re1 {[%emt 0:07:01]} Re8 {[%emt 0:03:28]} 11. Bf4 {[%emt 0:03:08] White is more active.} e5 {[%emt 0:03:54]} 12. Be3 {[%emt 0:03:59]} Nh5 {[%emt 0:02:41]} 13. a3 {[%emt 0:09:26] White is better.} Bd7 {[%emt 0:08:50]} 14. b4 {[%emt 0:02:14]} b6 {[%emt 0:01:51]} 15. Rb1 {[%emt 0:02:49]} Nf4 {[%emt 0:05:28]} 16. Bc2 {[%emt 0:03:52][%cal Bd3c2,Bc2a4,Ba4c6][%mdl 32]} Qf6 {[%emt 0:13:31]} (16... Re7 $16) 17. bxc5 $18 {[%emt 0:05:06]} dxc5 {[%emt 0:02:47] [#]} 18. Bxf4 $1 {[%emt 0:09:09]} Qxf4 {[%emt 0:02:42] [#]} 19. d6 $1 {[%emt 0:01:25]} Ne6 {[%emt 0:01:57]} 20. Nd5 {[%emt 0:00:14]} Qh6 {[%emt 0:00:14]} 21. Ba4 {[%emt 0:00:29]} Red8 {[%emt 0:05:51]} 22. Bc6 {[%emt 0:02:21]} Nf4 $2 {[%emt 0:24:43]} (22... Bxc6 23. Ne7+ Kh8) 23. Bxa8 {[%emt 0:03:24]} Rxa8 {[%emt 0:00:05]} 24. a4 {[%emt 0:02:30][%cal Ba3a4,Ba4a5][%mdl 32]} g5 {[%emt 0:04:58] [#]} 25. a5 $1 {[%emt 0:02:42] White is clearly winning.} g4 {[%emt 0:07:24]} (25... Nxd5 26. Qxd5) 26. hxg4 {[%emt 0:00:25]} Bxg4 {[%emt 0:00:06]} 27. Nxf4 {[%emt 0:03:16]} exf4 {[%emt 0:00:03]} 28. e5 {[%emt 0:02:00]} Kh8 {[%emt 0:00:19]} 29. axb6 {[%emt 0:02:27]} axb6 {[%emt 0:00:14]} 30. Qd5 {[%emt 0:00:38]} Rg8 {[%emt 0:01:02][%cal Ba8g8,Bg8d8,Bd8d7,Bd7e7,Be7e6][%mdl 32]} 31. d7 {[%emt 0:05:17]} Rd8 {[%emt 0:01:09]} 32. Qxf7 {[%emt 0:00:15] Threatening mate with e6.} Rxd7 {[%emt 0:02:38]} 33. Qe8+ {[%emt 0:00:05]} Bf8 {[%emt 0:00:03] [#]} 34. Rxb6 $3 {[%emt 0:00:52][%cal Bb1b6,Bb6f6,Bf6f4][%mdl 544]} Qg7 {[%emt 0:00:04]} 35. Rf6 {[%emt 0:00:11]} Kg8 {[%emt 0:00:15]} 36. Rxf4 {[%emt 0:00:40] Black must now prevent e6.} Re7 {[%emt 0:02:01]} 37. Qc6 {[%emt 0:00:31]} Re6 {[%emt 0:01:59]} 38. Qd5 {[%emt 0:00:02] And now Nh4 would win.} Be7 {[%emt 0:00:05]} 39. Ra1 {[%emt 0:00:45] Black got outplayed after the opening.   Weighted Error Value: White=0.12 (very precise) /Black=0.61.  Mistake:       	---       	Black=2      OK:         	White=11    	Black=4      Best:        	White=2     	---        Strong:       	White=2     	---} 1-0

[Event "US Masters 2024"]
[Site "Charlotte"]
[Date "2024.11.28"]
[Round "2.21"]
[White "Mitrabha, Guha"]
[Black "Mendes Aaron Reeve"]
[Result "1-0"]
[ECO "D14"]
[WhiteElo "2511"]
[BlackElo "2320"]
[Annotator "TA"]
[PlyCount "97"]
[EventDate "2024.09.23"]
[EventType "swiss"]
[EventCountry "USA"]
[SourceTitle "playchess.com"]
[Source "ChessBase"]
[SourceQuality "1"]
[TimeControl "5400+30"]

{[%evp 17,96,37,41,28,75,74,82,82,93,92,92,87,86,83,89,80,131,112,133,139,131,116,118,81,141,129,126,134,121,129,136,128,131,128,161,161,175,168,172,200,200,202,188,183,187,205,262,258,342,332,387,387,404,325,628,319,419,411,420,415,407,394,498,397,557,552,592,559,29992,29993,29993,29994,29995,29996,29996,29997,29997,29998,29998,29999,29999]} 1. c4 {[%emt 0:20:11]} c6 {[%emt 0:00:18]} 2. Nc3 {[%emt 0:00:27]} d5 {[%emt 0:03:27]} 3. cxd5 {[%emt 0:00:28]} cxd5 {[%emt 0:00:25]} 4. d4 {[%emt 0:00:05]} Nf6 {[%emt 0:03:29]} 5. Nf3 {[%emt 0:00:20]} Nc6 {[%emt 0:00:20]} 6. Bf4 {[%emt 0:00:04]} Bf5 {[%emt 0:01:10]} 7. Qb3 {[%emt 0:00:38]} Qb6 {[%emt 0:09:23]} 8. Qxb6 {[%emt 0:01:59]} axb6 {[%emt 0:00:08]} 9. e3 {[%emt 0:00:06]} e6 {[%emt 0:02:51]} 10. Bb5 {[%emt 0:00:05] Ne5 is the strong threat.} Nd7 {[%emt 0:03:56]} (10... Bb4 $11) 11. Nh4 $16 {[%emt 0:01:54] [#] Hoping for Nxf5.} Bg4 {[%emt 0:03:26]} 12. h3 {[%emt 0:02:14][%cal Bh2h3,Bh3h4,Bh4h5][%mdl 32] White is better.} Bh5 {[%emt 0:00:16]} 13. g4 {[%emt 0:00:02]} Bg6 {[%emt 0:01:00]} 14. Nxg6 {[%emt 0:02:33]} hxg6 {[%emt 0:00:07]} 15. Rc1 {[%emt 0:00:09]} Be7 {[%emt 0:01:48]} 16. a3 {[%emt 0:00:40]} O-O {[%emt 0:02:24]} (16... Nf6 $142) 17. h4 {[%emt 0:00:43]} Rfc8 {[%emt 0:02:13]} 18. Ke2 {[%emt 0:00:29]} Nf6 {[%emt 0:03:42][%cal Bd7f6,Bf6e8,Be8d6][%mdl 32]} 19. g5 {[%emt 0:09:09]} Ne8 {[%emt 0:08:26]} 20. h5 {[%emt 0:01:41] White is more active.} Bd6 {[%emt 0:00:59]} ({Better is} 20... gxh5 21. Rxh5 g6) 21. Bxd6 {[%emt 0:03:41]} Nxd6 {[%emt 0:00:09]} 22. hxg6 {[%emt 0:01:31]} fxg6 {[%emt 0:00:09]} 23. Bd3 {[%emt 0:00:13]} Kf7 {[%emt 0:01:52]} 24. Nb5 {[%emt 0:04:54]} Nxb5 {[%emt 0:01:11]} 25. Bxb5 {[%emt 0:00:01]} Ke7 {[%emt 0:10:12]} 26. Bd3 {[%emt 0:01:20]} Kf7 {[%emt 0:03:56]} 27. Rc3 {[%emt 0:00:05]} e5 {[%emt 0:01:34]} 28. dxe5 {[%emt 0:00:33]} Nxe5 {[%emt 0:00:11]} 29. Rhc1 {[%emt 0:00:03]} Nc6 {[%emt 0:07:46]} 30. Kd2 {[%emt 0:00:40]} Rh8 {[%emt 0:16:34]} 31. Rb3 {[%emt 0:00:34]} Rh2 {[%emt 0:00:14]} 32. Rxb6 {[%emt 0:00:53]} Ne5 {[%emt 0:00:32]} 33. Rc7+ {[%emt 0:00:54]} (33. Rxb7+ Kg8 $16) 33... Kf8 {[%emt 0:01:26]} 34. Ke2 {[%emt 0:03:08]} (34. Rbxb7 Rxf2+ 35. Be2 Rh2 $18) 34... Kg8 {[%emt 0:01:51]} 35. Re6 {[%emt 0:00:49]} (35. Bxg6 Rf8 36. Ke1 (36. Rcxb7 $2 Rfxf2+ 37. Ke1 Nf3+ 38. Kd1 Rh1#) 36... Rh1+ 37. Ke2 Rh2 $11) 35... Ng4 {[%emt 0:01:37] [#]} (35... Nxd3 36. Kxd3 Rxf2 37. Rxb7 Kh7) 36. Ree7 {[%emt 0:03:47]} Rf8 {[%emt 0:03:30]} 37. Bxg6 {[%emt 0:00:15]} (37. Rxb7 $2 Rfxf2+ (37... Nxf2 38. Rxg7+ Kh8 39. Rgc7 $18) 38. Ke1 Rh1+) (37. Rxg7+ Kh8 38. Kd2 (38. Rxb7 $2 Rfxf2+ 39. Ke1 Rh1+) 38... Nxf2 $18) 37... Kh8 {[%emt 0:02:13]} 38. Kd3 {[%emt 0:03:10]} ({Resist} 38. Rxb7 Nxf2 39. Re8 (39. Rxg7 Ne4+ 40. Ke1 Rh1+ 41. Ke2 Rf2+ 42. Kd3 Rd2#) 39... Ne4+ 40. Kd1 Rxe8 41. Bxe8 Kh7 $18) (38. Rxg7 Rfxf2+ 39. Kd3 Rxb2 $18) 38... Nxf2+ {[%emt 0:01:01]} 39. Kd4 {[%emt 0:00:13]} Rh4+ {[%emt 0:02:08]} 40. Kc5 {[%emt 0:01:19]} Nd1 {[%emt 0:01:10]} (40... Nh3 {might work better.} 41. Rxb7 (41. Kxd5 Nxg5 42. Rxb7 Rd8+ 43. Kc5 Rh6 $16) (41. Rf7 Ra8 $18) 41... Nxg5) 41. Rxb7 $18 {[%emt 0:00:35]} Rc4+ {[%emt 0:00:43]} 42. Kd6 {[%emt 0:00:33]} d4 {[%emt 0:01:43][%cal Bd5d4,Bd4d3][%mdl 32]} 43. Re4 {[%emt 0:01:02] White mates.} Kg8 {[%emt 0:00:00]} 44. Rh4 {[%emt 0:00:28]} d3 {[%emt 0:00:26]} 45. Bh7+ {[%emt 0:00:11]} Kh8 {[%emt 0:00:04]} 46. Be4+ {[%emt 0:00:02]} Kg8 {[%emt 0:00:08]} 47. Bd5+ {[%emt 0:00:01]} Rf7 {[%emt 0:00:09]} 48. Bxf7+ {[%emt 0:00:02]} Kf8 {[%emt 0:00:10]} 49. Rh8# {[%emt 0:00:01] Weighted Error Value: White=0.16 (very precise) /Black=0.56.  Mistake:       	---       	Black=5      Inaccurate:     	White=2     	Black=3      OK:         	White=22    	Black=9      Best:        	White=1     	---} 1-0